bitfinex/quotes_ETHUSD_20240821
["timestamp","ask_amount","ask_price","bid_price","bid_amount"]
[1724227945468,2.6539,2591.8,2591.4,0.005]
[1724227945649,5.358,2591.5,2591.4,0.005]
[1724227945870,0.85477,2591.7,2591.4,0.005]
[1724227946047,5.358,2591.5,2591.4,0.005]
[1724227947395,8.358,2591.5,2591.4,0.005]
[1724227947569,5.358,2591.5,2591.4,0.005]
[1724227947779,5.979277,2591.5,2591.4,0.005]
[1724227947973,11.461877,2591.5,2591.4,0.005]
[1724227949200,8.979277,2591.5,2591.4,0.005]
[1724227950870,0.85477,2591.7,2591.4,0.005]
[1724227951052,5.358,2591.9,2591.4,0.005]
[1724227951384,5.358,2591.9,2591.5,0.07996615]
[1724227952462,5.4506,2591.8,2591.5,0.07996615]
[1724227952663,5.4506,2591.8,2591.4,0.005]
[1724227952880,1.08086,2591.7,2591.4,0.005]
[1724227953471,5.358,2591.5,2591.4,0.005]
[1724227954377,8.358,2591.5,2591.4,0.005]
[1724227954926,10.7747,2591.5,2591.4,0.005]
[1724227955210,10.7747,2591.5,2589.9,11.4371]
[1724227955211,2.4167,2591.4,2589.9,11.4371]
[1724227955413,2.2519,2591.2,2589.9,11.4371]
[1724227955714,2.2519,2591.2,2590.0,0.07723617]
[1724227955715,5.2519,2591.2,2590.0,0.07723617]
[1724227955921,5.2519,2591.2,2590.2,0.7]
[1724227956272,2.2519,2591.2,2590.3,0.07751239]
[1724227956522,5.358,2590.9,2590.3,0.07751239]
[1724227956682,5.358,2590.9,2590.1,2.4056]
[1724227957010,5.358,2590.9,2590.2,0.77751239]
[1724227957320,2.2686,2591.6,2590.6,0.7]
[1724227957475,0.334946,2591.5,2590.3,0.7]
[1724227958010,0.334946,2591.5,2590.4,0.07875085]
[1724227958485,5.358,2591.3,2590.4,0.07875085]
[1724227958684,5.358,2591.3,2590.7,2.2743]
[1724227958888,5.358,2591.3,2590.7,2.57173]
[1724227959094,5.358,2591.3,2590.8,0.0783888]
[1724227959309,5.358,2591.3,2590.7,2.57173]
[1724227959514,5.358,2591.3,2590.9,0.7]
[1724227959742,5.358,2591.7,2590.9,0.7]
[1724227960049,7.27,2592.3,2590.7,2.57173]
[1724227960050,5.358,2592.1,2591.3,2.3479]
[1724227960212,5.358,2592.1,2591.6,0.7]
[1724227960392,3.6233,2592.6,2591.6,0.7]
[1724227960596,2.4043,2592.6,2591.7,0.07766477]
[1724227960796,5.358,2592.4,2591.7,0.07766477]
[1724227961232,5.358,2592.4,2591.3,3.0479]
[1724227961406,2.4043,2592.6,2591.3,3.0479]
[1724227961407,5.358,2592.0,2591.3,3.0479]
[1724227961606,5.358,2592.0,2591.4,0.07722674]
[1724227962050,7.7571,2592.0,2591.4,0.07722674]
[1724227962354,7.7571,2592.0,2590.9,3.1472]
[1724227962648,7.7571,2592.0,2591.0,0.07731243]
[1724227962849,0.77571,2591.9,2591.0,0.39976367]
[1724227963200,0.77571,2591.9,2591.2,0.7]
[1724227963435,5.358,2592.0,2591.2,0.7]
[1724227963697,3.0,2592.2,2591.4,2.3204]
[1724227964048,0.5358,2592.3,2591.5,0.77733147]
[1724227964250,2.4483,2593.3,2591.5,0.77733147]
[1724227964456,0.30532993,2593.2,2591.5,0.77733147]
[1724227964743,5.358,2592.5,2591.9,0.7]
[1724227965330,0.30532993,2593.2,2592.2,0.7]
[1724227965531,5.358,2593.1,2592.2,0.7]
[1724227965914,5.358,2593.1,2592.3,0.07727434]
[1724227966118,0.56633299,2593.0,2592.3,0.07727434]
[1724227966516,5.358,2592.7,2592.3,0.07727434]
[1724227966724,5.358,2592.7,2592.0,2.4548]
[1724227966927,5.358,2592.7,2592.1,0.07727434]
[1724227967131,5.358,2592.7,2591.6,2.9542]
[1724227967132,7.6601,2592.7,2591.6,2.9542]
[1724227967341,7.6601,2592.7,2591.7,0.07727434]
[1724227967541,0.76601,2592.6,2591.7,0.07727434]
[1724227967743,0.76601,2592.6,2591.9,0.7]
[1724227968227,0.76601,2592.6,2592.0,0.07727434]
[1724227968629,5.358,2592.3,2592.0,0.07727434]
[1724227969048,3.0,2592.2,2591.3,2.2542]
[1724227969221,3.5358,2592.2,2592.1,0.07469853]
[1724227969423,3.5358,2592.2,2591.0,3.0056]
[1724227969959,5.8938,2592.2,2591.3,0.7]
[1724227970260,3.0,2592.1,2591.3,0.7]
[1724227970480,3.0,2592.1,2591.4,0.07405093]
[1724227970481,0.88938,2592.0,2591.4,0.07405093]
[1724227970681,5.358,2591.8,2591.4,0.07405093]
[1724227970848,5.358,2591.8,2591.0,2.3056]
[1724227971181,0.761,2591.7,2591.0,2.3056]
[1724227971392,0.761,2591.7,2591.1,0.77405093]
[1724227971738,0.761,2591.7,2591.1,0.7]
[1724227972486,5.358,2591.4,2590.4,0.87]
[1724227972635,5.358,2591.4,2590.3,2.4547]
[1724227972831,3.5358,2591.3,2590.5,0.07422232]
[1724227973035,3.5358,2591.3,2590.3,2.4547]
[1724227973261,0.5358,2591.3,2590.6,0.07422232]
[1724227973465,3.0,2591.2,2590.6,0.7]
[1724227973668,3.0,2591.2,2590.1,0.005]
[1724227973669,5.358,2590.7,2590.1,0.005]
[1724227974210,5.358,2590.7,2590.2,0.07422232]
[1724227974479,3.0,2591.0,2590.2,0.07422232]
[1724227974684,3.0,2591.1,2590.2,0.07422232]
[1724227975039,3.0,2591.1,2590.4,0.7]
[1724227975374,5.358,2591.2,2590.5,2.4169]
[1724227975583,5.358,2591.2,2590.6,0.07422232]
[1724227976367,3.0,2591.4,2590.6,0.07422232]
[1724227976692,3.0,2591.5,2590.8,0.7]
[1724227979017,5.358,2591.6,2590.8,0.7]
[1724227979721,6.1938,2591.6,2590.8,0.7]
[1724227980012,3.0,2591.8,2590.9,2.2882]
[1724227980215,5.358,2592.0,2591.1,0.7]
[1724227980513,5.358,2592.0,2590.5,0.31169]
[1724227980514,11.91296447,2592.8,2591.4,0.7]
[1724227980681,11.91296447,2592.8,2591.2,2.2882]
[1724227980682,2.2642,2592.8,2591.7,0.7]
[1724227980890,0.46565621,2592.7,2591.7,0.7]
[1724227981211,5.358,2592.5,2591.8,2.4707]
[1724227981572,5.358,2592.5,2592.0,0.7]
[1724227981766,0.46565621,2592.7,2592.3,0.7]
[1724227981972,3.34119763,2593.4,2592.4,2.44596513]
[1724227981973,2.39236213,2593.4,2592.4,2.44596513]
[1724227982170,2.39236213,2593.6,2592.6,0.7]
[1724227982401,2.94064342,2593.7,2592.7,0.07453657]
[1724227982402,5.358,2593.1,2592.7,0.07453657]
[1724227982781,5.358,2593.1,2592.3,0.7]
[1724227983520,5.358,2593.5,2592.3,0.7]
[1724227983724,0.5358,2593.4,2592.3,0.7]
[1724227983902,0.5358,2593.4,2592.4,0.07453657]
[1724227984782,3.5358,2593.4,2592.4,0.07453657]
[1724227985539,5.358,2593.1,2592.4,0.07453657]
[1724227986239,3.5358,2593.4,2592.4,0.07453657]
[1724227986240,5.358,2592.7,2592.4,0.07453657]
[1724227986543,5.358,2592.7,2591.9,0.7]
[1724227986707,5.358,2592.7,2592.2,0.7]
[1724227987042,3.0,2592.9,2592.3,0.07205201]
[1724227987244,5.358,2593.1,2592.3,0.07205201]
[1724227987441,0.5358,2593.0,2592.3,0.07205201]
[1724227987740,5.358,2593.1,2592.5,0.7]
[1724227989143,0.35358,2593.3,2592.5,0.7]
[1724227989341,3.35358,2593.3,2592.6,2.3406]
[1724227989554,0.35358,2593.3,2592.6,2.3406]
[1724227989844,0.35358,2593.3,2592.8,0.7]
[1724227990541,8.358,2593.5,2592.8,0.7]
[1724227990915,8.358,2593.5,2592.6,2.3406]
[1724227992448,8.358,2593.5,2592.8,0.7]
[1724227992801,8.358,2593.5,2592.6,2.3406]
[1724227993826,8.358,2593.5,2592.8,0.7]
[1724227994034,9.1938,2593.5,2592.8,0.7]
[1724227994701,8.358,2593.5,2592.8,0.7]
[1724227995845,8.358,2593.5,2592.6,2.3406]
[1724227996495,8.358,2593.5,2592.7,0.06952019]
[1724227997680,8.358,2593.5,2592.8,0.7]
[1724227998373,5.358,2593.5,2592.9,2.2895]
[1724228002036,5.358,2593.5,2593.2,0.7]
[1724228002576,3.0,2593.8,2593.2,0.7]
[1724228004183,5.358,2593.9,2593.3,2.4202]
[1724228004788,5.358,2593.9,2593.5,0.7]
[1724228004970,3.0,2594.1,2593.6,0.06903508]
[1724228005285,0.3,2594.0,2593.6,0.06903508]
[1724228005450,5.658,2594.0,2593.6,0.06903508]
[1724228005855,5.658,2594.0,2593.3,2.4202]
[1724228006291,5.358,2593.6,2593.0,0.7]
[1724228006588,5.358,2593.6,2593.1,0.06903508]
[1724228006752,5.358,2593.6,2593.1,0.37449859]
[1724228007081,5.658,2594.0,2593.3,0.7]
[1724228007290,3.0,2593.9,2593.4,2.4936]
[1724228007434,5.658,2594.0,2593.4,2.4936]
[1724228007638,5.658,2594.0,2593.5,0.06903508]
[1724228010640,5.358,2593.6,2592.8,2.3664]
[1724228010836,5.358,2593.2,2592.7,0.7]
[1724228011491,5.358,2593.2,2592.4,0.7]
[1724228011492,7.6547,2593.2,2592.4,0.7]
[1724228011696,5.358,2592.8,2592.2,2.3541]
[1724228012245,5.358,2592.5,2591.8,2.3541]
[1724228012946,2.257,2592.7,2591.6,0.7]
[1724228012947,5.358,2592.1,2591.6,0.7]
[1724228013141,5.8938,2592.1,2591.6,0.7]
[1724228013339,5.358,2592.1,2591.5,0.7]
[1724228014488,5.358,2592.1,2591.4,2.3113]
[1724228014658,5.358,2592.1,2591.6,0.7]
[1724228014864,5.358,2592.1,2591.1,3.0592]
[1724228015063,5.358,2592.1,2591.1,2.3592]
[1724228015394,5.8938,2592.1,2591.2,0.30592]
[1724228015695,3.0,2592.0,2591.1,2.3592]
[1724228016496,3.0,2592.0,2591.2,0.7]
[1724228016646,3.0,2592.0,2591.1,2.3592]
[1724228016973,3.0,2592.0,2591.2,0.05623029]
[1724228017885,3.0,2592.0,2591.3,1.25]
[1724228018073,3.0,2592.0,2591.3,1.06654303]
[1724228018255,3.0,2592.0,2591.4,0.05628735]
[1724228018643,3.0,2592.0,2591.1,0.7]
[1724228018839,3.0,2592.0,2590.8,2.2938]
[1724228019088,5.3997,2592.0,2591.2,0.05253486]
[1724228019297,5.3997,2592.0,2591.0,0.7]
[1724228019298,1.07577,2591.9,2591.0,0.7]
[1724228019447,1.07577,2591.9,2591.3,0.05253486]
[1724228019646,1.07577,2591.9,2591.0,0.7]
[1724228019852,1.07577,2591.9,2591.4,0.04903254]
[1724228020048,1.07577,2591.9,2591.0,0.7]
[1724228020554,1.07577,2591.9,2591.1,0.04728137]
[1724228020768,0.647547,2591.8,2591.1,0.04728137]
[1724228022253,5.358,2591.7,2591.1,0.04728137]
[1724228022866,5.358,2591.7,2590.9,0.7]
[1724228027514,12.6697,2592.0,2590.9,0.7]
[1724228027671,12.6697,2592.0,2591.2,0.7]
[1724228027875,13.99899351,2592.0,2591.2,0.7]
[1724228028198,13.99899351,2592.0,2590.9,0.7]
[1724228028358,13.99899351,2592.0,2591.0,0.04242386]
[1724228028992,13.99899351,2592.0,2591.2,0.7]
[1724228029459,6.72899351,2592.0,2591.2,0.7]
[1724228029899,5.3997,2592.0,2591.2,0.7]
[1724228031572,5.3997,2592.0,2590.9,0.7]
[1724228031792,5.3997,2592.0,2591.0,0.04242386]
[1724228033705,5.3997,2592.0,2591.3,0.7]
[1724228034006,5.358,2591.7,2591.0,0.7]
[1724228034214,5.8938,2591.7,2591.1,0.04242386]
[1724228035125,5.358,2591.7,2591.1,0.04242386]
[1724228035291,5.3997,2592.0,2591.4,0.7]
[1724228035713,2.3997,2592.0,2591.4,0.7]
[1724228036007,5.358,2592.1,2591.4,0.7]
[1724228036526,4.02,2592.1,2591.4,0.7]
[1724228037220,5.68693,2592.1,2591.4,0.7]
[1724228037823,4.02,2591.7,2591.4,0.7]
[1724228037976,2.297,2591.6,2590.5,0.7]
[1724228038179,4.02,2590.9,2590.6,0.03900764]
[1724228038433,2.297,2591.0,2590.3,8.689]
[1724228038741,7.664,2590.5,2590.4,0.03759098]
[1724228038902,2.297,2590.5,2590.4,0.03759098]
[1724228039089,3.0,2590.8,2590.2,0.005]
[1724228039319,7.7273,2590.9,2590.2,0.005]
[1724228039538,7.7273,2590.9,2590.3,0.03476018]
[1724228039848,0.48415891,2590.8,2590.2,0.005]
[1724228040198,0.48415891,2590.8,2590.3,0.03476018]
[1724228040399,5.367,2590.5,2590.2,0.005]
[1724228040700,5.367,2590.5,2590.3,0.03476018]
[1724228041100,5.367,2590.5,2590.2,0.005]
[1724228041507,5.367,2590.5,2590.3,0.03476018]
[1724228041706,5.9037,2590.5,2590.3,0.03476018]
[1724228041909,2.3878,2590.4,2590.2,0.005]
[1724228042313,2.3878,2590.4,2590.3,0.03476018]
[1724228042528,2.3878,2590.4,2590.2,0.005]
[1724228042956,5.9037,2590.5,2590.2,0.005]
[1724228042957,5.367,2590.5,2590.2,0.005]
[1724228043096,5.3878,2590.8,2590.2,0.005]
[1724228043302,6.46328,2590.8,2590.3,0.03476018]
[1724228043835,6.46328,2590.8,2590.2,0.005]
[1724228044034,6.46328,2590.8,2590.3,0.03476018]
[1724228044035,2.3878,2590.7,2590.3,0.03476018]
[1724228044325,5.3878,2590.7,2590.2,0.005]
[1724228044500,0.946328,2590.6,2590.2,0.005]
[1724228044700,3.946328,2590.6,2590.2,0.005]
[1724228044895,5.367,2590.5,2590.2,0.005]
[1724228045924,2.4323,2590.3,2590.2,0.005]
[1724228051552,5.367,2590.9,2590.2,0.005]
[1724228051553,2.2591,2591.7,2590.3,2.496]
[1724228051753,2.48501,2591.7,2590.4,0.9501]
[1724228052059,2.48501,2591.7,2590.4,0.28694927]
[1724228052272,2.48501,2591.7,2590.4,0.03684927]
[1724228052766,5.367,2590.9,2590.4,0.03684927]
[1724228053137,5.367,2590.9,2590.2,0.005]
[1724228053510,2.2591,2591.0,2590.2,0.005]
[1724228053657,2.2591,2591.0,2590.3,0.03596406]
[1724228053813,0.05,2591.6,2590.3,0.03596406]
[1724228053814,7.8071,2590.4,2590.3,0.03596406]
[1724228054014,10.8071,2590.4,2590.2,0.005]
[1724228054250,3.0,2590.3,2590.2,0.005]
[1724228054667,5.4902,2590.3,2590.2,0.005]
[1724228054869,6.57592,2590.3,2590.2,0.005]
[1724228056533,6.57592,2590.3,2590.2,0.0424109]
[1724228056938,6.57592,2590.3,2590.2,0.005]
[1724228058980,5.367,2590.4,2590.2,0.005]
[1724228059179,5.367,2590.4,2590.3,0.03742995]
[1724228059744,5.367,2590.4,2590.2,0.005]
[1724228060018,5.367,2590.8,2590.2,0.005]
[1724228060321,5.367,2590.8,2590.3,2.4978]
[1724228060620,5.367,2590.8,2590.3,2.74858]
[1724228060762,7.27,2591.1,2590.3,2.74858]
[1724228060959,12.19,2591.4,2590.3,2.74858]
[1724228060960,7.27,2591.4,2590.3,3.44858]
[1724228061393,7.27,2591.4,2590.3,2.74858]
[1724228061761,5.367,2591.2,2590.3,2.74858]
[1724228061963,5.367,2591.2,2590.4,0.275358]
[1724228064662,7.27,2591.4,2590.7,2.4878]
[1724228065087,5.367,2591.6,2590.9,0.7]
[1724228065279,7.27,2592.1,2591.0,2.4878]
[1724228065582,5.367,2591.9,2591.0,2.84291544]
[1724228065893,5.367,2591.9,2591.0,2.80658]
[1724228066115,5.367,2591.9,2591.0,2.4878]
[1724228066296,5.367,2591.9,2590.6,3.0916]
[1724228066297,2.3262,2591.8,2590.6,3.0916]
[1724228066503,5.367,2591.5,2590.6,3.0916]
[1724228066799,5.367,2591.5,2590.7,0.03493658]
[1724228066967,2.3262,2591.8,2590.7,0.03493658]
[1724228067317,0.76932,2591.7,2590.7,0.31265366]
[1724228067532,3.76932,2591.7,2590.7,0.31265366]
[1724228067824,3.76932,2591.7,2590.6,3.0916]
[1724228067974,5.367,2591.5,2590.7,0.03493658]
[1724228068468,5.367,2591.5,2590.6,2.3916]
[1724228068704,3.0,2591.4,2590.7,0.0347178]
[1724228068903,5.367,2591.0,2590.7,0.0347178]
[1724228069128,5.367,2591.0,2590.2,0.005]
[1724228069129,3.5367,2590.9,2590.2,0.005]
[1724228073155,5.367,2590.6,2590.2,0.005]
[1724228074532,3.5367,2590.9,2590.3,2.4458]
[1724228074730,3.0,2590.9,2590.3,2.4458]
[1724228075031,5.367,2590.9,2590.3,2.4458]
[1724228075376,3.0,2590.8,2590.3,2.4458]
[1724228075793,2.38205961,2591.6,2590.4,0.7]
[1724228076071,0.31513796,2591.6,2590.5,2.3071]
[1724228076271,0.76932,2591.7,2590.5,2.3071]
[1724228077255,0.76932,2591.7,2590.9,2.3071]
[1724228077670,5.367,2591.9,2590.9,2.3071]
[1724228080149,5.367,2592.3,2591.6,0.7]
[1724228081684,3.0,2592.2,2591.6,0.7]
[1724228081881,3.0,2592.2,2591.7,2.4212]
[1724228082084,5.367,2592.3,2591.8,0.31212]
[1724228082677,5.367,2592.7,2591.9,0.7]
[1724228083355,5.367,2592.7,2592.0,2.3654]
[1724228084287,3.0,2592.6,2592.0,2.3654]
[1724228086345,0.00607794,2592.8,2592.0,2.3654]
[1724228086540,0.00607794,2592.8,2592.1,0.30654]
[1724228087047,0.00607794,2592.8,2592.2,2.4936]
[1724228088246,0.00607794,2592.8,2592.5,2.2822]
[1724228088677,0.00607794,2592.8,2592.4,0.7]
[1724228089060,0.00607794,2592.8,2592.1,2.58874]
[1724228089061,0.00607794,2592.8,2592.1,3.28874]
[1724228089268,5.367,2593.0,2592.1,3.28874]
[1724228089460,5.367,2593.0,2592.2,0.328874]
[1724228089661,5.367,2593.0,2592.1,2.2822]
[1724228089890,2.3774,2592.9,2592.1,2.2822]
[1724228090189,5.367,2592.5,2592.1,2.2822]
[1724228090961,5.367,2592.5,2591.6,2.2877]
[1724228091481,3.0,2592.4,2591.6,2.2877]
[1724228091679,3.0,2592.4,2591.7,0.29877]
[1724228092790,3.0,2592.4,2591.6,2.2877]
[1724228096105,12.637,2592.9,2591.9,2.4626]
[1724228096307,5.367,2592.9,2592.1,0.7]
[1724228096626,2.3944,2593.2,2592.2,2.4723]
[1724228096775,3.36084,2593.2,2592.3,0.31723]
[1724228097118,2.3944,2593.2,2592.3,0.31723]
[1724228097272,7.27,2594.0,2592.3,0.31723]
[1724228097273,2.4482,2593.8,2592.3,0.31723]
[1724228097472,4.017,2593.0,2592.3,0.31723]
[1724228098619,2.4482,2593.8,2592.3,0.31723]
[1724228098620,3.0,2593.2,2592.3,0.31723]
[1724228098771,2.4482,2593.8,2592.3,0.31723]
[1724228098972,0.54482,2593.7,2592.3,0.31723]
[1724228099403,3.54482,2593.7,2592.3,0.31723]
[1724228099629,5.356,2593.1,2592.2,2.4723]
[1724228099773,3.0,2593.0,2592.2,2.4723]
[1724228100417,3.0,2593.0,2592.5,0.7]
[1724228100594,5.356,2593.1,2592.5,0.7]
[1724228100924,5.356,2593.1,2592.6,2.3103]
[1724228101345,5.78641362,2593.1,2592.6,2.3103]
[1724228101473,5.78641362,2593.1,2592.2,2.3103]
[1724228101474,2.3365,2593.0,2592.2,2.3103]
[1724228101673,5.78641362,2593.1,2592.2,2.3103]
[1724228102121,3.0,2593.0,2592.2,2.3103]
[1724228102304,0.87864136,2592.9,2592.2,2.3103]
[1724228102554,5.356,2592.7,2591.8,0.7]
[1724228102719,5.356,2592.7,2591.8,2.9598]
[1724228103115,3.0,2592.6,2591.8,2.9598]
[1724228103320,0.8356,2592.5,2591.8,0.7]
[1724228103960,0.8356,2592.5,2591.5,2.3243]
[1724228105613,5.356,2592.3,2591.5,2.3243]
[1724228107324,5.356,2591.9,2591.2,2.4595]
[1724228107520,3.0,2591.8,2591.1,0.7]
[1724228107734,3.0,2591.8,2590.9,2.4595]
[1724228108119,2.4472,2591.7,2590.9,2.4595]
[1724228108437,2.4472,2591.7,2590.5,2.4595]
[1724228108438,5.356,2591.5,2590.5,2.4595]
[1724228108633,5.356,2591.5,2590.7,0.7]
[1724228110019,5.4472,2591.7,2591.3,0.7]
[1724228110020,3.0,2591.7,2591.3,0.7]
[1724228110214,5.356,2591.9,2591.3,0.7]
[1724228110419,3.0,2591.8,2591.3,0.7]
[1724228110617,3.8356,2591.8,2591.1,2.4059]
[1724228112338,3.0,2591.8,2591.1,2.4059]
[1724228112947,3.0,2591.8,2591.4,0.7]
[1724228114887,5.4999,2591.8,2591.1,3.1059]
[1724228115365,3.0,2591.8,2591.1,3.1059]
[1724228115953,3.0,2591.8,2590.5,2.9705]
[1724228115954,5.356,2591.5,2590.5,2.9705]
[1724228116186,2.4999,2591.7,2591.1,0.7]
[1724228116187,0.8356,2591.7,2591.1,0.7]
[1724228116478,2.4999,2592.3,2591.1,0.7]
[1724228116688,3.0,2592.0,2591.1,0.7]
[1724228116890,5.356,2591.8,2590.6,2.2705]
[1724228117037,3.0,2591.7,2590.6,2.2705]
[1724228117241,7.8559,2591.4,2590.6,2.2705]
[1724228117435,0.78559,2591.3,2590.2,0.005]
[1724228117689,3.0,2591.3,2590.2,0.005]
[1724228118195,2.4999,2591.3,2590.2,0.005]
[1724228118394,5.4999,2591.3,2590.2,0.005]
[1724228118607,5.356,2590.8,2590.2,0.005]
[1724228118889,5.4999,2590.7,2590.2,0.005]
[1724228119093,3.0,2590.6,2590.2,0.005]
[1724228119241,2.4999,2590.5,2590.2,0.005]
[1724228122900,7.8469,2590.3,2590.2,0.005]
[1724228123057,7.8469,2590.3,2588.1,0.7]
[1724228123058,2.4909,2590.2,2588.1,0.7]
[1724228123257,2.4953,2589.8,2587.5,0.7]
[1724228123574,1.49625587,2590.1,2587.4,2.3105]
[1724228123575,2.3733,2589.6,2588.9,0.03469494]
[1724228124098,2.3733,2589.5,2587.7,0.7]
[1724228124242,3.0,2589.7,2587.5,10.722]
[1724228124243,2.3733,2588.9,2587.5,10.722]
[1724228124604,5.356,2589.6,2587.5,10.722]
[1724228124605,5.356,2588.4,2587.6,0.73663464]
[1724228125872,2.2514,2589.0,2587.9,0.7]
[1724228126079,5.356,2589.0,2588.0,2.2639]
[1724228126257,5.356,2589.0,2588.0,2.30157265]
[1724228126438,5.8916,2589.0,2588.1,0.30015727]
[1724228126842,5.8916,2589.0,2588.2,0.03766312]
[1724228127298,5.8916,2589.0,2588.0,2.2639]
[1724228127644,3.0,2588.9,2588.1,0.03766312]
[1724228127840,3.0,2588.9,2588.2,0.7]
[1724228128146,5.356,2589.0,2588.2,0.7]
[1724228128460,5.356,2589.0,2588.3,0.03766312]
[1724228129210,5.356,2589.0,2588.0,2.9639]
[1724228129353,5.356,2589.0,2588.4,0.03766312]
[1724228129553,5.356,2589.0,2588.0,2.9639]
[1724228129754,3.0,2589.2,2588.1,0.03766312]
[1724228129755,5.356,2588.6,2588.1,0.03766312]
[1724228130182,5.356,2588.6,2587.7,12.7251]
[1724228130406,5.356,2588.6,2588.2,0.03766312]
[1724228130612,3.0,2588.5,2587.7,12.7251]
[1724228130765,3.0,2588.5,2587.0,0.1257977]
[1724228130766,0.8356,2588.4,2588.3,0.03766312]
[1724228131108,2.2868,2588.3,2587.5,6.1214]
[1724228131450,5.2868,2588.3,2587.6,0.03766312]
[1724228131703,2.2868,2588.2,2587.6,0.03766312]
[1724228132002,2.2868,2588.2,2587.0,0.1257977]
[1724228132003,0.52868,2588.1,2587.0,0.1257977]
[1724228132500,3.0,2588.1,2587.1,0.0924489]
[1724228132667,5.356,2587.3,2587.1,0.0924489]
[1724228133152,3.0,2587.8,2587.1,0.0924489]
[1724228133356,7.8236,2587.6,2587.1,0.0924489]
[1724228133798,5.356,2587.2,2587.1,0.0924489]
[1724228134114,5.8916,2587.2,2587.1,0.0924489]
[1724228134870,5.8916,2587.2,2587.0,0.1257977]
[1724228135093,5.8916,2587.2,2587.1,0.09322803]
[1724228135094,5.356,2587.2,2587.1,0.09322803]
[1724228135286,3.0,2587.8,2587.1,0.09322803]
[1724228135554,2.2853,2588.0,2587.1,0.09322803]
[1724228135753,2.2853,2588.0,2587.1,6.62382803]
[1724228135976,2.3073,2588.5,2587.1,6.62382803]
[1724228136153,5.356,2588.1,2587.1,6.62382803]
[1724228136797,5.356,2588.1,2587.4,3.4035]
[1724228137377,2.4223,2588.0,2587.5,0.09322803]
[1724228137674,0.77783,2587.9,2587.5,0.09322803]
[1724228137865,5.356,2588.1,2587.2,0.7]
[1724228138064,5.356,2587.7,2587.0,10.2343977]
[1724228138252,5.356,2587.7,2587.3,0.09322803]
[1724228138483,2.2847,2587.6,2587.3,0.09322803]
[1724228138686,2.2847,2587.6,2587.0,10.2343977]
[1724228138687,3.0,2587.6,2587.0,0.1257977]
[1724228138992,3.0,2587.6,2587.1,0.09322803]
[1724228139305,0.8356,2587.5,2587.1,0.09322803]
[1724228139452,5.356,2587.7,2587.1,0.09322803]
[1724228139848,0.24223,2588.3,2587.4,2.3263]
[1724228140047,2.3302,2588.8,2587.6,0.7]
[1724228140255,5.356,2588.6,2587.7,0.09340912]
[1724228140596,5.356,2588.6,2587.5,0.7]
[1724228140922,5.356,2588.6,2587.8,4.53190912]
[1724228141123,5.356,2588.6,2587.8,4.4385]
[1724228141124,0.5356,2588.5,2587.8,4.4385]
[1724228141488,0.5356,2588.5,2587.9,2.51570912]
[1724228141806,5.356,2588.6,2587.9,2.51570912]
[1724228142008,7.27,2589.5,2588.1,0.7]
[1724228142324,5.356,2589.0,2588.1,0.7]
[1724228142466,7.9493,2589.6,2588.2,2.2949]
[1724228142663,0.79493,2589.5,2588.2,2.2949]
[1724228142972,1.89481424,2589.5,2588.3,0.09340912]
[1724228143184,2.97500785,2589.4,2588.3,0.09340912]
[1724228143482,2.4191,2589.2,2587.8,2.2949]
[1724228144032,5.4191,2589.2,2587.8,2.2949]
[1724228144330,5.534,2588.8,2587.9,0.0918561]
[1724228144532,5.534,2588.8,2587.6,7.2147]
[1724228144533,3.0,2588.7,2587.6,7.2147]
[1724228144666,2.4028,2588.5,2587.6,7.2147]
[1724228144868,0.55,2588.4,2587.7,0.0918561]
[1724228145213,2.437,2588.3,2587.0,0.1257977]
[1724228145424,2.437,2588.1,2587.0,0.1257977]
[1724228145632,2.2964,2587.9,2587.1,0.08897106]
[1724228145916,5.534,2587.8,2587.1,0.08897106]
[1724228146266,5.534,2587.3,2587.1,0.08897106]
[1724228146718,5.2921,2587.2,2587.1,0.08897106]
[1724228146900,1.08261,2587.1,2586.1,18.4145]
[1724228147069,2.381,2587.0,2586.1,18.4145]
[1724228147271,2.381,2586.8,2586.1,12.43870536]
[1724228147519,2.3097,2586.6,2585.0,0.02]
[1724228147736,1.593928,2586.5,2585.0,0.02]
[1724228147947,0.55,2586.4,2585.0,0.02]
[1724228148089,0.5041599,2586.4,2585.1,0.07765084]
[1724228148291,5.534,2585.7,2585.1,0.07765084]
[1724228148518,3.0,2585.6,2585.1,0.07765084]
[1724228149338,5.534,2585.2,2585.1,0.07765084]
[1724228149688,8.534,2585.2,2585.1,0.07765084]
[1724228150351,3.0,2585.2,2585.1,0.07765084]
[1724228150556,5.534,2585.7,2585.1,0.07765084]
[1724228150691,3.0,2585.6,2585.1,0.07765084]
[1724228151143,3.8534,2585.6,2585.1,0.07765084]
[1724228151503,5.534,2585.2,2585.1,0.07765084]
[1724228151750,8.534,2585.2,2585.1,0.07765084]
[1724228152603,5.534,2585.7,2585.1,0.07765084]